fUST/lending_fUST_20260221
["ID","MTS","AMOUNT","RATE_DAILY","PERIOD"]
[406231377,1771641046697,-432.4759853,0.00011065,2]
[406231379,1771641062893,-1385.15789828,0.00010954,2]
[406231405,1771641483487,208.64,6.494e-05,2]
[406231456,1771642232492,-2141.91741663,8.793e-05,2]
[406231457,1771642232501,-5000.0,8.882e-05,2]
[406231458,1771642232510,-1032.38606804,8.972e-05,2]
[406231459,1771642232519,-546.0,8.972e-05,2]
[406231460,1771642232528,-150.0,9.018e-05,2]
[406231461,1771642232537,-405.19167636,9.247e-05,2]
[406231462,1771642232546,-2211.16741726,0.00010093,2]
[406231463,1771642232555,-281.15176069,0.00010791,2]
[406231464,1771642232564,-151.80587651,0.00010792,2]
[406231465,1771642232573,-300.0,0.00010798,2]
[406231466,1771642232582,-300.0,0.00010799,2]
[406231467,1771642232591,-213.88,0.000108,2]
[406231468,1771642232599,-177.0,0.00011018,2]
[406231469,1771642232609,-519.23496199,0.00011022,2]
[406231470,1771642232618,-300.0,0.00011022,2]
[406231471,1771642232627,-151.0,0.00011024,2]
[406231472,1771642232636,-4272.33483463,0.0001105,2]
[406231473,1771642232645,-182.66325785,0.00011059,2]
[406231474,1771642232654,-151.0,0.00011065,2]
[406231475,1771642232663,-161.470183,0.00011065,2]
[406231476,1771642232672,-198.721306,0.00011065,2]
[406231477,1771642232681,-224.0211824,0.00011067,2]
[406231478,1771642232690,-500.0,0.00012,2]
[406231479,1771642232699,-4361.9508092,0.00012007,2]
[406231480,1771642232709,-230.8108835,0.00012042,2]
[406231481,1771642232717,-192.589,0.00012381,2]
[406231482,1771642232726,-3035.53191478,0.000129,2]
[406231483,1771642232735,-4630.79873319,0.00012964,2]
[406231484,1771642232744,-7317.2154357,0.00012994,2]
[406231485,1771642232752,-204.0,0.00013018,2]
[406231486,1771642232761,-156.44244972,0.00013273,2]
[406231487,1771642232770,-506.37229237,0.00013273,2]
[406231488,1771642232779,-500.0,0.00013273,2]
[406231489,1771642232788,-447.01522812,0.00013273,2]
[406231490,1771642232797,-500.0,0.00013273,2]
[406231491,1771642232808,-486.84,0.00013599,2]
[406231492,1771642232817,-369.21073733,0.00013697,2]
[406231493,1771642232826,-500.0,0.00013698,2]
[406231494,1771642232835,-500.0,0.00013698,2]
[406231495,1771642232843,-500.0,0.00013698,2]
[406231496,1771642232854,-506.46673729,0.00013698,2]
[406231497,1771642232864,-274.17596775,0.00013698,2]
[406231498,1771642232873,-463.45570366,0.00013698,2]
[406231499,1771642232882,-340.24691031,0.00013698,2]
[406231500,1771642232891,-500.0,0.00013698,2]
[406231501,1771642232900,-500.0,0.00013698,2]
[406231502,1771642232909,-559.89114066,0.00013698,2]
[406231503,1771642232919,-642.69183308,0.00013698,2]
[406231504,1771642232928,-577.24286911,0.00013698,2]
[406231505,1771642232937,-271.2079545,0.00013699,2]
[406231506,1771642232947,-3182.3728121,0.00013699,2]
[406231507,1771642232956,-151.0,0.00013699,2]
[406231508,1771642232965,-151.0,0.00013699,2]
[406231509,1771642232974,-151.0,0.00013699,2]
[406231510,1771642232983,-151.0,0.00013699,2]
[406231511,1771642232992,-151.0,0.00013699,2]
[406231512,1771642233001,-151.0,0.00013699,2]
[406231513,1771642233011,-151.0,0.00013699,2]
[406231514,1771642233020,-157.954306,0.00013699,2]
[406231515,1771642233029,-158.463734,0.00013699,2]
[406231516,1771642233039,-301.052732,0.00013699,2]
[406231517,1771642233048,-155.327888,0.00013699,2]
[406231518,1771642233057,-503.8893495,0.00013699,2]
[406231519,1771642233066,-500.0,0.00013699,2]
[406231520,1771642233075,-500.0,0.00013699,2]
[406231521,1771642233085,-501.99516055,0.00013699,2]
[406231522,1771642233095,-500.0,0.00013699,2]
[406231523,1771642233105,-150.0,0.000137,2]
[406231524,1771642233114,-1029.58561228,0.00013821,2]
[406231525,1771642233123,-219.26298292,0.00013821,2]
[406231526,1771642233132,-4989.26263184,0.00013921,2]
[406231527,1771642233142,-250.52,0.000142,2]
[406231528,1771642233151,-1125.0993017,0.00014247,2]
[406231529,1771642233160,-505.55150507,0.00014247,2]
[406231530,1771642233169,-1000.0,0.00014247,2]
[406231531,1771642233178,-1580.0,0.00014672,2]
[406231532,1771642233187,-222.0,0.00014783,2]
[406231533,1771642233196,-365.66524753,0.00014795,2]
[406231534,1771642233205,-639.584,0.00014832,2]
[406231535,1771642233214,-1581.997,0.00014832,2]
[406231536,1771642233223,-5347.7265305,0.00014878,2]
[406231537,1771642233232,-205.9,0.00015,30]
[406231538,1771642233241,-814.74887094,0.00015,2]
[406231539,1771642233250,-231.0,0.00015018,2]
[406231540,1771642233259,-179.870682,0.00015068,2]
[406231541,1771642233270,-390.28287906,0.00015251,2]
[406231542,1771642233280,-3035.53191477,0.00015255,2]
[406231543,1771642233289,-5755.19145859,0.00015375,2]
[406231544,1771642233298,-161.03430882,0.0001555,2]
[406231545,1771642233308,-6000.7128677,0.000156,30]
[406231546,1771642233318,-160.0,0.00015818,3]
[406231547,1771642233327,-5526.37131459,0.00015835,2]
[406231587,1771642238535,-500.0,0.00011021,2]
[406231589,1771642238545,-500.0,0.00011021,2]
[406231591,1771642238555,-500.0,0.00011021,2]
[406231593,1771642238564,-500.0,0.00011021,2]
[406231595,1771642238574,-500.0,0.00011021,2]
[406231597,1771642238583,-500.0,0.00011021,2]
[406231599,1771642238592,-338.08223082,0.00011021,2]
[406231601,1771642238602,-500.0,0.00011021,2]
[406231603,1771642238611,-104.94001524,0.00011021,2]
[406231668,1771642246515,-464.87788521,0.00010911,2]
[406231747,1771642861947,-2846.11905891,0.00010634,2]
[406231791,1771643431589,-5000.0,0.00010319,2]
[406231792,1771643431599,-150.0,0.00010635,2]
[406231794,1771643431608,-197.26,0.000109,2]
[406231796,1771643431617,-1200.0,0.00011809,2]
[406231797,1771643431626,-300.0,0.0001181,2]
[406231799,1771643431635,-300.0,0.0001181,2]
[406231801,1771643431644,-300.0,0.0001181,2]
[406231803,1771643431653,-300.0,0.0001181,2]
[406231805,1771643431662,-29338.5530982,0.00011811,2]
[406231807,1771643431671,-500.0,0.00011811,2]
[406231809,1771643431680,-300.0,0.00011811,2]
[406231811,1771643431690,-300.0,0.00011811,2]
[406231812,1771643431699,-500.0,0.00011811,2]
[406231813,1771643431707,-500.0,0.00011811,2]
[406231814,1771643431717,-515.53317376,0.00011811,2]
[406231815,1771643431726,-500.0,0.00011811,2]
[406231816,1771643431736,-338.08223082,0.00011811,2]
[406231817,1771643431745,-500.0,0.00011811,2]
[406231818,1771643431754,-500.0,0.00011811,2]
[406231819,1771643431764,-500.0,0.00011811,2]
[406231820,1771643431773,-500.0,0.00011811,2]
[406231821,1771643431783,-500.0,0.00011811,2]
[406231822,1771643431792,-500.0,0.00011811,2]
[406231823,1771643431803,-500.0,0.00011811,2]
[406231824,1771643431812,-500.0,0.00011811,2]
[406231825,1771643431821,-500.0,0.00011811,2]
[406231826,1771643431832,-500.0,0.00011811,2]
[406231827,1771643431842,-500.0,0.00011811,2]
[406231828,1771643431851,-500.0,0.00011811,2]
[406231829,1771643431861,-500.0,0.00011811,2]
[406231830,1771643431870,-500.0,0.00011811,2]
[406231831,1771643431879,-500.0,0.00011811,2]
[406231832,1771643431888,-500.0,0.00011811,2]
[406231833,1771643431897,-500.0,0.00011811,2]
[406231834,1771643431907,-500.0,0.00011811,2]
[406231835,1771643431916,-500.0,0.00011811,2]
[406231836,1771643431925,-500.0,0.00011811,2]
[406231837,1771643431934,-500.0,0.00011811,2]
[406231838,1771643431944,-500.0,0.00011811,2]
[406231839,1771643431953,-500.0,0.00011811,2]
[406231840,1771643431962,-500.0,0.00011811,2]
[406231841,1771643431971,-500.0,0.00011811,2]
[406231842,1771643431981,-500.0,0.00011811,2]
[406231843,1771643431990,-500.0,0.00011811,2]
[406231844,1771643431999,-500.0,0.00011811,2]
[406231845,1771643432009,-500.0,0.00011811,2]
[406231846,1771643432019,-500.0,0.00011811,2]
[406231847,1771643432029,-624.09396445,0.00011811,2]
[406231848,1771643432039,-500.0,0.00011811,2]
[406231849,1771643432048,-500.0,0.00011811,2]
[406231850,1771643432058,-500.0,0.00011811,2]
[406231851,1771643432067,-550.0,0.00011811,2]
[406231852,1771643432077,-500.0,0.00011811,2]
[406231853,1771643432086,-500.0,0.00011811,2]
[406231854,1771643432096,-500.0,0.00011811,2]
[406231855,1771643432105,-500.0,0.00011811,2]
[406231856,1771643432115,-500.0,0.00011811,2]
[406231857,1771643432124,-500.0,0.00011811,2]
[406231858,1771643432133,-500.0,0.00011811,2]
[406231859,1771643432142,-500.0,0.00011811,2]
[406231860,1771643432151,-500.0,0.00011811,2]
[406231861,1771643432160,-500.0,0.00011811,2]
[406231862,1771643432169,-500.0,0.00011811,2]
[406231863,1771643432180,-500.0,0.00011811,2]
[406231864,1771643432192,-500.0,0.00011811,2]
[406231865,1771643432201,-309.773202,0.00011811,2]
[406231866,1771643432211,-500.0,0.00011811,2]
[406231867,1771643432221,-500.0,0.00011811,2]
[406231868,1771643432230,-500.0,0.00011811,2]
[406231869,1771643432245,-500.0,0.00011811,2]
[406231870,1771643432259,-500.0,0.00011811,2]
[406231871,1771643432268,-500.0,0.00011811,2]
[406231872,1771643432278,-500.0,0.00011811,2]
[406231873,1771643432287,-516.28860968,0.00011955,2]
[406231874,1771643432296,-500.0,0.00012085,2]
[406231875,1771643432305,-500.0,0.00012359,2]
[406231876,1771643432315,-500.0,0.00012633,2]
[406231877,1771643432324,-177.0,0.00012635,2]
[406231878,1771643432334,-2572.57057908,0.000129,2]
[406231879,1771643432343,-500.0,0.00012907,2]
[406231880,1771643432352,-420.0,0.00012967,2]
[406231881,1771643432362,-420.0,0.00012967,2]
[406231882,1771643432371,-420.0,0.00012967,2]
[406231883,1771643432380,-321.0,0.00012967,2]
[406231884,1771643432389,-1680.0,0.0001299,2]
[406231885,1771643432398,-336.0,0.00012992,2]
[406231886,1771643432408,-500.0,0.00013181,2]
[406231887,1771643432417,-500.0,0.00013273,2]
[406231888,1771643432426,-500.0,0.00013273,2]
[406231889,1771643432435,-398.80271788,0.00013273,2]
[406231890,1771643432444,-487.16974626,0.00013273,2]
[406231891,1771643432453,-500.0,0.00013273,2]
[406231892,1771643432462,-500.0,0.00013273,2]
[406231893,1771643432470,-501.79852659,0.00013273,2]
[406231894,1771643432479,-641.45669496,0.00013273,2]
[406231895,1771643432489,-504.38389879,0.00013273,2]
[406231896,1771643432498,-523.84605547,0.00013455,2]
[406231897,1771643432507,-463.04536546,0.00013559,2]
[406231898,1771643432516,-500.0,0.00013698,2]
[406231899,1771643432525,-500.0,0.00013698,2]
[406231900,1771643432534,-500.0,0.00013698,2]
[406231901,1771643432544,-17.01473763,0.00013698,2]
[406231927,1771643437765,-150.0,0.00010477,2]
[406231929,1771643437775,-177.0,0.00012477,2]
[406231931,1771643437784,-258.44751613,0.00012899,2]
[406231933,1771643437793,-482.98526237,0.00013698,2]
[406231935,1771643437803,-500.0,0.00013698,2]
[406231936,1771643437812,-416.21763324,0.00013698,2]
[406232183,1771643440190,-83.78236676,0.00013698,2]
[406232185,1771643440200,-602.45844016,0.00013698,2]
[406232187,1771643440209,-103.95796413,0.00013698,2]
[406232189,1771643440219,-420.02072215,0.00013698,2]
[406232191,1771643440231,-151.0,0.00013699,2]
[406232193,1771643440239,-227.361934,0.00013699,2]
[406232195,1771643440250,-177.11606535,0.00013699,2]
[406232251,1771643445695,-322.88393465,0.00013699,2]
[406232252,1771643445705,-156.50550729,0.00013699,2]
[406232253,1771643445715,-500.0,0.00013699,2]
[406232254,1771643445724,-580.27383175,0.00013699,2]
[406232255,1771643445733,-546.66484975,0.00013699,2]
[406232256,1771643445742,-282.16774383,0.00013699,2]
[406232802,1771644645791,-5000.0,0.00011118,2]
[406232803,1771644645800,-207.96487938,0.0001143,2]
[406232804,1771644645809,-1200.0,0.00012325,2]
[406232805,1771644645820,-300.0,0.00012326,2]
[406232806,1771644645831,-300.0,0.00012326,2]
[406232807,1771644645843,-300.0,0.00012326,2]
[406232808,1771644645853,-300.0,0.00012326,2]
[406232809,1771644645863,-300.0,0.00012326,2]
[406232810,1771644645873,-251.95665561,0.00012328,2]
[406232811,1771644645883,-236.44,0.00012329,2]
[406232812,1771644645893,-197.03,0.00012329,2]
[406232813,1771644645902,-164.19,0.00012329,2]
[406232814,1771644645911,-821.0,0.00012329,2]
[406232815,1771644645921,-2250.99925673,0.000129,2]
[406232816,1771644645931,-1945.70934267,0.000131,2]
[406232817,1771644645943,-151.0,0.00013131,2]
[406232818,1771644645953,-151.0,0.00013132,2]
[406232819,1771644645962,-68340.29952493,0.00013133,2]
[406232820,1771644681371,-965.8235205,0.00013002,2]
[406232821,1771644681391,-274.45373288,0.00013068,2]
[406232822,1771644681400,-691.36978762,0.00013133,2]
[406232823,1771644681412,-60.38020077,0.00013133,2]
[406232974,1771645838193,-1992.02724177,0.00011959,2]
[406232976,1771645838203,-1815.60559086,0.0001221,2]
[406232979,1771645838213,-305.70548586,0.00012699,7]
[406232981,1771645838222,-155.91420157,0.00013005,7]
[406232983,1771645838231,-300.0,0.00013014,2]
[406232984,1771645838241,-300.0,0.00013014,2]
[406232986,1771645838251,-251.89261,0.00013017,2]
[406232988,1771645838260,-500.0,0.00013018,2]
[406232990,1771645838270,-500.0,0.00013018,2]
[406232992,1771645838279,-500.0,0.00013018,2]
[406232994,1771645838288,-500.0,0.00013018,2]
[406232996,1771645838298,-500.0,0.00013018,2]
[406232999,1771645838307,-500.0,0.00013018,2]
[406233001,1771645838317,-500.0,0.00013018,2]
[406233002,1771645838326,-500.0,0.00013018,2]
[406233004,1771645838335,-500.0,0.00013018,2]
[406233006,1771645838344,-500.0,0.00013018,2]
[406233008,1771645838354,-500.0,0.00013018,2]
[406233010,1771645838363,-500.0,0.00013018,2]
[406233012,1771645838373,-500.0,0.00013018,2]
[406233014,1771645838383,-500.0,0.00013018,2]
[406233016,1771645838392,-504.13972864,0.00013018,2]
[406233018,1771645838402,-500.0,0.00013018,2]
[406233020,1771645838411,-500.0,0.00013018,2]
[406233022,1771645838421,-500.0,0.00013018,2]
[406233024,1771645838430,-500.0,0.00013018,2]
[406233026,1771645838439,-500.0,0.00013018,2]
[406233028,1771645838448,-500.0,0.00013018,2]
[406233030,1771645838457,-500.0,0.00013018,2]
[406233032,1771645838466,-500.0,0.00013018,2]
[406233034,1771645838475,-500.0,0.00013018,2]
[406233036,1771645838484,-245.13613999,0.00013018,2]
[406233038,1771645838493,-500.0,0.00013018,2]
[406233040,1771645838503,-500.0,0.00013018,2]
[406233042,1771645838512,-500.0,0.00013018,2]
[406233044,1771645838521,-500.0,0.00013018,2]
[406233046,1771645838531,-500.0,0.00013018,2]
[406233048,1771645838540,-500.0,0.00013018,2]
[406233050,1771645838548,-500.0,0.00013018,2]
[406233052,1771645838557,-500.0,0.00013018,2]
[406233054,1771645838566,-500.0,0.00013018,2]
[406233055,1771645838575,-500.0,0.00013018,2]
[406233058,1771645838585,-205.7566656,0.00013018,2]
[406233060,1771645838595,-500.0,0.00013018,2]
[406233062,1771645838605,-500.0,0.00013018,2]
[406233064,1771645838614,-500.0,0.00013018,2]
[406233066,1771645838624,-500.0,0.00013018,2]
[406233068,1771645838633,-500.0,0.00013018,2]
[406233070,1771645838643,-500.0,0.00013018,2]
[406233072,1771645838652,-500.0,0.00013018,2]
[406233074,1771645838661,-500.0,0.00013018,2]
[406233076,1771645838671,-500.0,0.00013018,2]
[406233078,1771645838680,-500.0,0.00013018,2]
[406233079,1771645838689,-500.0,0.00013018,2]
[406233082,1771645838699,-500.0,0.00013018,2]
[406233084,1771645838708,-500.0,0.00013018,2]
[406233085,1771645838718,-404.22691763,0.00013018,2]
[406233088,1771645838727,-500.0,0.00013018,2]
[406233090,1771645838737,-500.0,0.00013018,2]
[406233092,1771645838746,-500.0,0.00013018,2]
[406233093,1771645838755,-500.0,0.00013018,2]
[406233095,1771645838765,-500.0,0.00013018,2]
[406233097,1771645838775,-500.0,0.00013018,2]
[406233099,1771645838784,-500.0,0.00013018,2]
[406233101,1771645838793,-500.0,0.00013018,2]
[406233103,1771645838802,-500.0,0.00013018,2]
[406233105,1771645838811,-500.0,0.00013018,2]
[406233107,1771645838820,-500.0,0.00013018,2]
[406233109,1771645838830,-500.0,0.00013018,2]
[406233111,1771645838839,-500.0,0.00013018,2]
[406233113,1771645838848,-500.0,0.00013018,2]
[406233115,1771645838858,-500.0,0.00013018,2]
[406233117,1771645838867,-500.0,0.00013018,2]
[406233119,1771645838877,-500.0,0.00013018,2]
[406233121,1771645838886,-500.0,0.00013018,2]
[406233123,1771645838895,-500.0,0.00013018,2]
[406233125,1771645838905,-500.0,0.00013018,2]
[406233127,1771645838914,-500.0,0.00013018,2]
[406233129,1771645838924,-500.0,0.00013018,2]
[406233131,1771645838933,-500.0,0.00013018,2]
[406233133,1771645838943,-500.0,0.00013018,2]
[406233135,1771645838952,-601.40653565,0.00013018,2]
[406233137,1771645838962,-500.0,0.00013018,2]
[406233139,1771645838971,-300.0,0.00013018,2]
[406233141,1771645838979,-1200.0,0.00013018,2]
[406233143,1771645838989,-250.14586943,0.00013018,2]
[406233145,1771645838998,-10151.32475904,0.00013019,2]
[406233148,1771645839011,-2000.0,0.00013019,2]
[406233150,1771645839022,-17749.84588364,0.00013019,2]
[406233152,1771645839031,-7995.370067,0.0001302,2]
[406233154,1771645839040,-22715.9866488,0.0001302,2]
[406233156,1771645839049,-3072.422394,0.0001302,2]
[406233158,1771645839059,-155.0,0.00013272,2]
[406233160,1771645839072,-500.0,0.00013273,2]
[406233162,1771645839082,-501.481496,0.00013273,2]
[406233164,1771645839091,-638.9562083,0.00013273,2]
[406233166,1771645839099,-500.0,0.00013273,2]
[406233168,1771645839110,-500.0,0.00013273,2]
[406233170,1771645839119,-3481.21118188,0.00013303,2]
[406233172,1771645839128,-192.355,0.00013559,2]
[406233174,1771645839139,-181.95315025,0.00013698,2]
[406233176,1771645839149,-500.0,0.00013698,2]
[406233178,1771645839158,-388.79432345,0.00013698,2]
[406233180,1771645839167,-518.62581272,0.00013698,2]
[406233182,1771645839177,-500.0,0.00013698,2]
[406233184,1771645839187,-568.70101222,0.00013698,2]
[406233186,1771645839197,-500.0,0.00013698,2]
[406233187,1771645839207,-500.0,0.00013698,2]
[406233189,1771645839216,-261.57279632,0.00013698,2]
[406233191,1771645839225,-841.5388088,0.00013699,2]
[406233193,1771645839235,-161.919586,0.00013699,2]
[406233195,1771645839247,-160.882218,0.00013699,2]
[406233197,1771645839259,-504.14408874,0.00013699,2]
[406233199,1771645839268,-502.52875199,0.00013699,2]
[406233201,1771645839277,-160.48756205,0.00013699,2]
[406233203,1771645839286,-500.0,0.00013699,2]
[406233205,1771645839295,-500.0,0.00013699,2]
[406233207,1771645839305,-503.13817704,0.00013699,2]
[406233209,1771645839324,-500.0,0.00013699,2]
[406233211,1771645839342,-341.23911395,0.00013699,2]
[406233213,1771645839351,-505.53135506,0.00013699,2]
[406233215,1771645839360,-500.0,0.00013699,2]
[406233217,1771645839370,-204.80486603,0.00013699,2]
[406233219,1771645839379,-277.38122496,0.00013699,2]
[406233221,1771645839388,-232.00862766,0.00013699,2]
[406233223,1771645839398,-331.64932766,0.00013699,2]
[406233225,1771645839407,-928.03451064,0.00013699,2]
[406233227,1771645839416,-347.21697202,0.00013699,2]
[406233229,1771645839426,-500.0,0.00013699,2]
[406233231,1771645839435,-500.0,0.00013699,2]
[406233233,1771645839444,-500.0,0.00013699,2]
[406233235,1771645839453,-500.0,0.00013699,2]
[406233237,1771645839462,-500.0,0.00013699,2]
[406233239,1771645839471,-500.0,0.00013699,2]
[406233241,1771645839480,-500.0,0.00013699,2]
[406233243,1771645839490,-500.0,0.00013699,2]
[406233245,1771645839499,-500.0,0.00013699,2]
[406233247,1771645839508,-500.0,0.00013699,2]
[406233248,1771645839518,-500.0,0.00013699,2]
[406233249,1771645839526,-500.0,0.00013699,2]
[406233250,1771645839535,-500.0,0.00013699,2]
[406233251,1771645839544,-500.0,0.00013699,2]
[406233252,1771645839554,-500.0,0.00013699,2]
[406233253,1771645839562,-500.0,0.00013699,2]
[406233254,1771645839571,-500.0,0.00013699,2]
[406233255,1771645839580,-500.0,0.00013699,2]
[406233256,1771645839589,-500.0,0.00013699,2]
[406233257,1771645839598,-500.0,0.00013699,2]
[406233258,1771645839690,-500.0,0.00013699,2]
[406233259,1771645839700,-346.41206025,0.00013699,2]
[406233260,1771645839710,-500.0,0.00013699,2]
[406233262,1771645839719,-500.0,0.00013699,2]
[406233263,1771645839728,-150.0,0.000137,2]
[406233264,1771645839738,-1000.0,0.00013821,2]
[406233266,1771645839747,-1000.0,0.00013821,2]
[406233267,1771645839756,-185.17808133,0.00013821,2]
[406233269,1771645839765,-292.70658065,0.00013833,2]
[406233271,1771645839774,-150.0,0.00013833,2]
[406233274,1771645839783,-150.0,0.00013833,2]
[406233276,1771645839792,-150.0,0.00013833,2]
[406233278,1771645839801,-250.0,0.00013852,2]
[406233280,1771645839811,-250.0,0.00013852,2]
[406233282,1771645839820,-250.0,0.00013852,2]
[406233283,1771645839829,-500.0,0.00013852,2]
[406233286,1771645839838,-250.0,0.00013852,2]
[406233288,1771645839847,-500.0,0.00013852,2]
[406233291,1771645839857,-208.85817884,0.00013852,2]
[406233293,1771645839866,-500.0,0.00013852,2]
[406233295,1771645839874,-187.78006525,0.00013852,2]
[406233297,1771645839883,-194.72792766,0.00013852,2]
[406233298,1771645839892,-500.0,0.00013852,2]
[406233300,1771645839901,-201.93286099,0.00013852,2]
[406233303,1771645839911,-500.0,0.00013852,2]
[406233305,1771645839921,-209.40437684,0.00013852,2]
[406233307,1771645839930,-500.0,0.00013852,2]
[406233309,1771645839939,-217.15233878,0.00013852,2]
[406233310,1771645839947,-500.0,0.00013852,2]
[406233312,1771645839956,-225.18697532,0.00013852,2]
[406233314,1771645839965,-500.0,0.00013852,2]
[406233316,1771645839974,-233.51889341,0.00013852,2]
[406233318,1771645839983,-500.0,0.00013852,2]
[406233320,1771645839992,-242.15909246,0.00013852,2]
[406233322,1771645840001,-500.0,0.00013852,2]
[406233324,1771645840010,-251.11897888,0.00013852,2]
[406233326,1771645840020,-500.0,0.00013852,2]
[406233328,1771645840029,-260.4103811,0.00013852,2]
[406233330,1771645840039,-250.0,0.00013852,2]
[406233332,1771645840047,-500.0,0.00013852,2]
[406233334,1771645840057,-1957.856,0.00013852,2]
[406233336,1771645840066,-270.0455652,0.00013852,2]
[406233338,1771645840079,-261.70262272,0.00013852,2]
[406233340,1771645840087,-250.0,0.00013852,2]
[406233342,1771645840096,-500.0,0.00013852,2]
[406233344,1771645840105,-280.03725112,0.00013852,2]
[406233346,1771645840116,-250.0,0.00013852,2]
[406233348,1771645840126,-500.0,0.00013852,2]
[406233350,1771645840134,-290.39862941,0.00013852,2]
[406233352,1771645840143,-250.0,0.00013852,2]
[406233354,1771645840152,-301.1433787,0.00013852,2]
[406233356,1771645840161,-250.0,0.00013852,2]
[406233358,1771645840170,-250.0,0.00013852,2]
[406233360,1771645840179,-250.0,0.00013852,2]
[406233362,1771645840188,-250.0,0.00013852,2]
[406233364,1771645840197,-250.0,0.00013852,2]
[406233366,1771645840206,-250.0,0.00013852,2]
[406233368,1771645840215,-250.0,0.00013852,2]
[406233370,1771645840225,-272.40199376,0.00013852,2]
[406233372,1771645840234,-150.0,0.00013888,2]
[406233374,1771645840243,-299.52789136,0.00013888,2]
[406233376,1771645840252,-193.72532577,0.00013888,2]
[406233378,1771645840261,-2030.296672,0.00013907,2]
[406233380,1771645840270,-214.32763217,0.00013943,2]
[406233382,1771645840281,-2164.5407448,0.00013962,2]
[406233384,1771645840290,-204.86,0.000141,2]
[406233386,1771645840299,-150.0,0.000142,2]
[406233388,1771645840308,-1009.14759773,0.00014247,2]
[406233390,1771645840317,-506.09506702,0.00014247,2]
[406233392,1771645840326,-255.88749684,0.00014247,2]
[406233394,1771645840335,-1000.0,0.00014247,2]
[406233396,1771645840344,-420.0,0.00014272,2]
[406233398,1771645840354,-420.0,0.00014272,2]
[406233400,1771645840363,-289.0,0.00014276,2]
[406233402,1771645840372,-2088.07764895,0.00014296,2]
[406233404,1771645840381,-624.99054963,0.00014296,2]
[406233407,1771645840392,-763.0,0.0001432,2]
[406233408,1771645840403,-225.11065235,0.00014325,2]
[406233411,1771645840412,-1350.89835354,0.00014368,2]
[406233413,1771645840422,-1500.0,0.00014368,2]
[406233414,1771645840431,-3553.62881611,0.00014397,2]
[406233417,1771645840440,-636.0,0.00014493,2]
[406233419,1771645840449,-2176.0,0.00014493,2]
[406233420,1771645840458,-279.1762382,0.00014553,2]
[406233422,1771645840467,-322.72675082,0.00014613,2]
[406233424,1771645840476,-1784.0082034,0.0001475,2]
[406233426,1771645840485,-5068.6217388,0.0001475,2]
[406233428,1771645840495,-1500.0,0.00014795,2]
[406233430,1771645840504,-202.52,0.000148,2]
[406233432,1771645840513,-2000.0,0.00014916,2]
[406233434,1771645840522,-179.870682,0.00015068,2]
[406233436,1771645840531,-398.0660361,0.00015136,2]
[406233438,1771645840539,-1130.9623803,0.00015136,2]
[406233440,1771645840549,-1221.59912149,0.00015307,7]
[406233442,1771645840558,-457.05191253,0.00015307,7]
[406233444,1771645840567,-167.22859549,0.00015342,2]
[406233446,1771645840576,-2500.0,0.00015464,2]
[406233448,1771645840585,-3770.88171927,0.00015491,2]
[406233450,1771645840594,-260.18858604,0.00015518,2]
[406233452,1771645840603,-635.62733889,0.0001555,2]
[406233454,1771645840612,-174.47008511,0.000156,2]
[406233456,1771645840622,-167.0,0.00015651,2]
[406233458,1771645840631,-300.0,0.00015872,2]